[Event "Titled Tuesday Blitz February 15 Early 2022"]
[White "Csonka, Balazs"]
[Black "Przybylski, Wojciech"]
[WhiteFideId "742910"]
[BlackFideId "1117599"]
[WhiteElo "2404"]
[BlackElo "2133"]
[Result "0-1"]
[Round "09"]
[TimeControl "180+1"]
[Date "2022.02.15"]
[WhiteClock "0:00:02"]
[BlackClock "0:00:13"]

1. e4 {[%clk 0:03:00]}  e5 {[%clk 0:02:56]} 2. Nf3 {[%clk 0:03:00]}  Nc6 {[%clk 0:02:56]} 3. Nc3 {[%clk 0:03:00]}  Nf6 {[%clk 0:02:56]} 4. Bb5 {[%clk 0:03:00]}  Nd4 {[%clk 0:02:55]} 5. Bc4 {[%clk 0:02:56]}  Nxf3+ {[%clk 0:02:54]} 6. gxf3 {[%clk 0:02:55]}  c6 {[%clk 0:02:46]} 7. Qe2 {[%clk 0:02:50]}  b5 {[%clk 0:02:45]} 8. Bb3 {[%clk 0:02:49]}  b4 {[%clk 0:02:44]} 9. Nd1 {[%clk 0:02:39]}  g6 {[%clk 0:02:36]} 10. d3 {[%clk 0:02:21]}  Nh5 {[%clk 0:02:31]} 11. Be3 {[%clk 0:01:51]}  Qf6 {[%clk 0:02:28]} 12. a3 {[%clk 0:01:20]}  bxa3 {[%clk 0:02:24]} 13. bxa3 {[%clk 0:01:21]}  Nf4 {[%clk 0:02:16]} 14. Bxf4 {[%clk 0:01:20]}  exf4 {[%clk 0:02:08]} 15. e5 {[%clk 0:01:19]}  Qf5 {[%clk 0:02:04]} 16. d4 {[%clk 0:00:56]}  Bg7 {[%clk 0:01:58]} 17. Nc3 {[%clk 0:00:54]}  O-O {[%clk 0:01:31]} 18. Ne4 {[%clk 0:00:53]}  d5 {[%clk 0:01:24]} 19. exd6 {[%clk 0:00:41]}  Bxd4 {[%clk 0:01:08]} 20. O-O-O {[%clk 0:00:30]}  Bg7 {[%clk 0:01:01]} 21. Qc4 {[%clk 0:00:13]}  Qe5 {[%clk 0:00:48]} 22. Rhe1 {[%clk 0:00:04]}  Qa1+ {[%clk 0:00:31]} 23. Kd2 {[%clk 0:00:04]}  Qxa3 {[%clk 0:00:32]} 24. Qc5 {[%clk 0:00:04]}  Qb2 {[%clk 0:00:26]} 25. Rb1 {[%clk 0:00:03]}  Qe5 {[%clk 0:00:19]} 26. Qxe5 {[%clk 0:00:03]}  Bxe5 {[%clk 0:00:20]} 27. d7 {[%clk 0:00:02]}  Bxd7 {[%clk 0:00:20]} 28. Nc5 {[%clk 0:00:03]}  Bf6 {[%clk 0:00:14]} 29. Nxd7 {[%clk 0:00:02]}  Rad8 {[%clk 0:00:15]} 30. Kd3 {[%clk 0:00:02]}  Rxd7+ {[%clk 0:00:15]} 31. Ke4 {[%clk 0:00:02]}  Bg5 {[%clk 0:00:13]} 0-1


[Site "https://www.chess.com"]

[Event "Titled Tuesday Blitz February 15 Early 2022"]
[White "Cunjalo, Faris"]
[Black "Grischuk, Alexander"]
[WhiteFideId "14410710"]
[BlackFideId "4126025"]
[WhiteElo "2263"]
[BlackElo "2762"]
[Result "0-1"]
[Round "09"]
[TimeControl "180+1"]
[Date "2022.02.15"]
[WhiteClock "0:00:01"]
[BlackClock "0:00:06"]

1. d4 {[%clk 0:02:59]}  e6 {[%clk 0:03:00]} 2. Nf3 {[%clk 0:02:59]}  c5 {[%clk 0:02:59]} 3. e3 {[%clk 0:02:57]}  Nf6 {[%clk 0:02:59]} 4. Bd3 {[%clk 0:02:56]}  d5 {[%clk 0:02:56]} 5. O-O {[%clk 0:02:55]}  Nbd7 {[%clk 0:02:48]} 6. b3 {[%clk 0:02:50]}  b6 {[%clk 0:02:48]} 7. Bb2 {[%clk 0:02:50]}  Bb7 {[%clk 0:02:49]} 8. Nbd2 {[%clk 0:02:50]}  Bd6 {[%clk 0:02:47]} 9. Ne5 {[%clk 0:02:47]}  Qc7 {[%clk 0:02:46]} 10. f4 {[%clk 0:02:45]}  a6 {[%clk 0:02:35]} 11. Qe2 {[%clk 0:02:36]}  b5 {[%clk 0:02:32]} 12. c3 {[%clk 0:02:07]}  O-O {[%clk 0:02:25]} 13. Qf3 {[%clk 0:01:42]}  c4 {[%clk 0:01:51]} 14. Bc2 {[%clk 0:01:42]}  b4 {[%clk 0:01:52]} 15. bxc4 {[%clk 0:01:42]}  dxc4 {[%clk 0:01:47]} 16. Qh3 {[%clk 0:01:39]}  bxc3 {[%clk 0:01:26]} 17. Bxc3 {[%clk 0:01:38]}  g6 {[%clk 0:01:21]} 18. e4 {[%clk 0:01:25]}  Rac8 {[%clk 0:01:18]} 19. Rf3 {[%clk 0:01:09]}  Nh5 {[%clk 0:01:14]} 20. Ng4 {[%clk 0:00:35]}  f5 {[%clk 0:00:42]} 21. Nh6+ {[%clk 0:00:09]}  Kg7 {[%clk 0:00:39]} 22. exf5 {[%clk 0:00:08]}  Bxf3 {[%clk 0:00:29]} 23. Nxf3 {[%clk 0:00:08]}  Nxf4 {[%clk 0:00:12]} 24. d5+ {[%clk 0:00:08]}  Nf6 {[%clk 0:00:09]} 25. Bxf6+ {[%clk 0:00:02]}  Rxf6 {[%clk 0:00:09]} 26. Qh4 {[%clk 0:00:03]}  gxf5 {[%clk 0:00:06]} 27. dxe6 {[%clk 0:00:02]}  Rxh6 {[%clk 0:00:06]} 28. Qg5+ {[%clk 0:00:01]}  Rg6 {[%clk 0:00:06]} 0-1


[Site "https://www.chess.com"]

[Event "Titled Tuesday Blitz February 15 Early 2022"]
[White "Daneshvar, Bardiya"]
[Black "Cherniaiev, Tykhon"]
[WhiteFideId "12576468"]
[BlackFideId "14182360"]
[WhiteElo "2295"]
[BlackElo "2289"]
[Result "1-0"]
[Round "09"]
[TimeControl "180+1"]
[Date "2022.02.15"]
[WhiteClock "0:00:46"]
[BlackClock "0:00:04"]

1. d4 {[%clk 0:03:00]}  Nf6 {[%clk 0:02:59]} 2. c4 {[%clk 0:03:00]}  e6 {[%clk 0:03:00]} 3. Nf3 {[%clk 0:03:00]}  d5 {[%clk 0:02:59]} 4. Nc3 {[%clk 0:02:59]}  Bb4 {[%clk 0:02:58]} 5. Bg5 {[%clk 0:02:55]}  h6 {[%clk 0:02:57]} 6. Bh4 {[%clk 0:02:47]}  O-O {[%clk 0:02:55]} 7. e3 {[%clk 0:02:47]}  dxc4 {[%clk 0:02:55]} 8. Bxc4 {[%clk 0:02:46]}  c5 {[%clk 0:02:55]} 9. O-O {[%clk 0:02:44]}  cxd4 {[%clk 0:02:55]} 10. Nxd4 {[%clk 0:02:45]}  Nc6 {[%clk 0:02:54]} 11. Nxc6 {[%clk 0:02:44]}  bxc6 {[%clk 0:02:54]} 12. Qf3 {[%clk 0:02:35]}  Bxc3 {[%clk 0:02:34]} 13. bxc3 {[%clk 0:02:34]}  Bb7 {[%clk 0:02:34]} 14. Rab1 {[%clk 0:02:26]}  Qe7 {[%clk 0:02:31]} 15. e4 {[%clk 0:02:03]}  e5 {[%clk 0:02:19]} 16. Bxf6 {[%clk 0:01:51]}  gxf6 {[%clk 0:02:17]} 17. Qe3 {[%clk 0:01:52]}  Kh7 {[%clk 0:02:13]} 18. f4 {[%clk 0:01:51]}  exf4 {[%clk 0:01:46]} 19. Rxf4 {[%clk 0:01:49]}  Rg8 {[%clk 0:01:45]} 20. e5 {[%clk 0:01:17]}  Rg6 {[%clk 0:00:33]} 21. Bd3 {[%clk 0:01:14]}  Rg8 {[%clk 0:00:33]} 22. Rxf6 {[%clk 0:01:06]}  Bc8 {[%clk 0:00:21]} 23. Rbf1 {[%clk 0:00:57]}  Be6 {[%clk 0:00:21]} 24. Bxg6+ {[%clk 0:00:55]}  Rxg6 {[%clk 0:00:20]} 25. Rxg6 {[%clk 0:00:55]}  fxg6 {[%clk 0:00:20]} 26. Qd4 {[%clk 0:00:54]}  Bd5 {[%clk 0:00:19]} 27. c4 {[%clk 0:00:53]}  Be6 {[%clk 0:00:17]} 28. Qd6 {[%clk 0:00:52]}  Qxd6 {[%clk 0:00:16]} 29. exd6 {[%clk 0:00:53]}  Kg7 {[%clk 0:00:16]} 30. Rd1 {[%clk 0:00:52]}  Bd7 {[%clk 0:00:16]} 31. Re1 {[%clk 0:00:52]}  Kf6 {[%clk 0:00:16]} 32. Re7 {[%clk 0:00:53]}  Be6 {[%clk 0:00:16]} 33. c5 {[%clk 0:00:54]}  a5 {[%clk 0:00:15]} 34. Ra7 {[%clk 0:00:55]}  Bxa2 {[%clk 0:00:14]} 35. Rxa5 {[%clk 0:00:55]}  Bd5 {[%clk 0:00:15]} 36. g3 {[%clk 0:00:55]}  Ke6 {[%clk 0:00:15]} 37. Kf2 {[%clk 0:00:55]}  g5 {[%clk 0:00:15]} 38. Ke3 {[%clk 0:00:56]}  h5 {[%clk 0:00:15]} 39. Ra7 {[%clk 0:00:57]}  Bb3 {[%clk 0:00:08]} 40. Re7+ {[%clk 0:00:58]}  Kf6 {[%clk 0:00:08]} 41. Kd4 {[%clk 0:00:58]}  Be6 {[%clk 0:00:08]} 42. Rc7 {[%clk 0:00:57]}  Bd5 {[%clk 0:00:08]} 43. Rc8 {[%clk 0:00:56]}  Ke6 {[%clk 0:00:07]} 44. Re8+ {[%clk 0:00:56]}  Kd7 {[%clk 0:00:07]} 45. Re7+ {[%clk 0:00:55]}  Kd8 {[%clk 0:00:07]} 46. Ke5 {[%clk 0:00:56]}  h4 {[%clk 0:00:07]} 47. Rg7 {[%clk 0:00:56]}  hxg3 {[%clk 0:00:07]} 48. hxg3 {[%clk 0:00:57]}  Ke8 {[%clk 0:00:07]} 49. d7+ {[%clk 0:00:57]}  Kd8 {[%clk 0:00:08]} 50. Kd6 {[%clk 0:00:57]}  g4 {[%clk 0:00:05]} 51. Rxg4 {[%clk 0:00:48]}  Bc4 {[%clk 0:00:05]} 52. Rf4 {[%clk 0:00:46]}  Bf7 {[%clk 0:00:05]} 53. Ra4 {[%clk 0:00:46]}  Bb3 {[%clk 0:00:04]} 54. Ra8# {[%clk 0:00:46]} 1-0


[Site "https://www.chess.com"]

[Event "Titled Tuesday Blitz February 15 Early 2022"]
[White "De Souza Sa, Apolo"]
[Black "Rodchenkov, Sergey D."]
[WhiteFideId "324225390"]
[BlackFideId "4168712"]
[WhiteElo "1828"]
[BlackElo "2306"]
[Result "0-1"]
[Round "09"]
[TimeControl "180+1"]
[Date "2022.02.15"]
[WhiteClock "0:00:21"]
[BlackClock "0:01:11"]

1. d4 {[%clk 0:03:00]}  d5 {[%clk 0:03:00]} 2. c4 {[%clk 0:03:01]}  dxc4 {[%clk 0:03:00]} 3. Nf3 {[%clk 0:03:00]}  Nf6 {[%clk 0:03:00]} 4. e3 {[%clk 0:03:00]}  e6 {[%clk 0:03:01]} 5. Bxc4 {[%clk 0:03:00]}  c5 {[%clk 0:03:02]} 6. Qe2 {[%clk 0:03:00]}  a6 {[%clk 0:03:00]} 7. dxc5 {[%clk 0:02:54]}  Bxc5 {[%clk 0:02:59]} 8. O-O {[%clk 0:02:55]}  O-O {[%clk 0:02:54]} 9. Rd1 {[%clk 0:02:54]}  Qc7 {[%clk 0:02:54]} 10. a3 {[%clk 0:02:53]}  b5 {[%clk 0:02:51]} 11. Bd3 {[%clk 0:02:52]}  Bb7 {[%clk 0:02:52]} 12. b4 {[%clk 0:02:51]}  Bd6 {[%clk 0:02:52]} 13. Nbd2 {[%clk 0:02:50]}  Nbd7 {[%clk 0:02:48]} 14. Bb2 {[%clk 0:02:50]}  Rac8 {[%clk 0:02:45]} 15. Rac1 {[%clk 0:02:48]}  Qb8 {[%clk 0:02:45]} 16. e4 {[%clk 0:02:34]}  Nh5 {[%clk 0:02:33]} 17. g3 {[%clk 0:02:13]}  Ne5 {[%clk 0:02:25]} 18. Bb1 {[%clk 0:01:32]}  Nf6 {[%clk 0:02:17]} 19. Nb3 {[%clk 0:01:19]}  Nxf3+ {[%clk 0:02:09]} 20. Qxf3 {[%clk 0:01:20]}  Be5 {[%clk 0:02:07]} 21. Bxe5 {[%clk 0:01:19]}  Qxe5 {[%clk 0:02:08]} 22. Nc5 {[%clk 0:01:19]}  Ba8 {[%clk 0:02:03]} 23. Qe3 {[%clk 0:01:19]}  Qh5 {[%clk 0:02:01]} 24. Kg2 {[%clk 0:01:05]}  Ng4 {[%clk 0:01:52]} 25. Qf4 {[%clk 0:00:53]}  Qxh2+ {[%clk 0:01:46]} 26. Kf1 {[%clk 0:00:53]}  Qh5 {[%clk 0:01:27]} 27. Kg2 {[%clk 0:00:38]}  e5 {[%clk 0:01:12]} 28. Qf5 {[%clk 0:00:21]}  Qxf5 {[%clk 0:01:11]} 0-1


[Site "https://www.chess.com"]

[Event "Titled Tuesday Blitz February 15 Early 2022"]
[White "Desideri, Ricardo Maruchi"]
[Black "Golsta, Madara"]
[WhiteFideId "2110440"]
[BlackFideId "11607386"]
[WhiteElo "1945"]
[BlackElo "1997"]
[Result "1-0"]
[Round "09"]
[TimeControl "180+1"]
[Date "2022.02.15"]
[WhiteClock "0:00:34"]
[BlackClock "0:00:49"]

1. e4 {[%clk 0:02:56]}  c5 {[%clk 0:02:59]} 2. Nf3 {[%clk 0:02:55]}  d6 {[%clk 0:02:59]} 3. d4 {[%clk 0:02:56]}  cxd4 {[%clk 0:03:00]} 4. Nxd4 {[%clk 0:02:56]}  Nf6 {[%clk 0:03:00]} 5. Nc3 {[%clk 0:02:56]}  g6 {[%clk 0:03:00]} 6. Be3 {[%clk 0:02:54]}  Bg7 {[%clk 0:03:00]} 7. Bc4 {[%clk 0:02:52]}  Nc6 {[%clk 0:02:59]} 8. f3 {[%clk 0:02:36]}  O-O {[%clk 0:02:57]} 9. Bb3 {[%clk 0:02:36]}  d5 {[%clk 0:02:52]} 10. exd5 {[%clk 0:02:31]}  Na5 {[%clk 0:02:51]} 11. O-O {[%clk 0:02:17]}  Nxb3 {[%clk 0:02:48]} 12. Nxb3 {[%clk 0:02:17]}  a5 {[%clk 0:02:46]} 13. a4 {[%clk 0:02:16]}  Bf5 {[%clk 0:02:44]} 14. Qd2 {[%clk 0:01:56]}  Rc8 {[%clk 0:02:40]} 15. Rad1 {[%clk 0:01:52]}  Qc7 {[%clk 0:02:29]} 16. Nd4 {[%clk 0:01:43]}  Bd7 {[%clk 0:02:15]} 17. Kh1 {[%clk 0:01:28]}  Rfd8 {[%clk 0:02:12]} 18. Bf4 {[%clk 0:01:21]}  Qc4 {[%clk 0:02:10]} 19. Ndb5 {[%clk 0:01:09]}  Bxb5 {[%clk 0:02:00]} 20. axb5 {[%clk 0:01:09]}  Nh5 {[%clk 0:01:57]} 21. Be3 {[%clk 0:00:58]}  Bxc3 {[%clk 0:01:28]} 22. bxc3 {[%clk 0:00:57]}  Qxc3 {[%clk 0:01:08]} 23. Bb6 {[%clk 0:00:54]}  Rd7 {[%clk 0:01:06]} 24. Bxa5 {[%clk 0:00:50]}  Qxc2 {[%clk 0:00:55]} 25. Rc1 {[%clk 0:00:49]}  Qxd2 {[%clk 0:00:50]} 26. Rxc8+ {[%clk 0:00:49]}  Kg7 {[%clk 0:00:50]} 27. Bxd2 {[%clk 0:00:48]}  Rxd5 {[%clk 0:00:51]} 28. Bc3+ {[%clk 0:00:46]}  f6 {[%clk 0:00:51]} 29. Re1 {[%clk 0:00:44]}  Kf7 {[%clk 0:00:50]} 30. Rc7 {[%clk 0:00:43]}  Rxb5 {[%clk 0:00:49]} 31. Rcxe7+ {[%clk 0:00:34]} 1-0


[Site "https://www.chess.com"]

[Event "Titled Tuesday Blitz February 15 Early 2022"]
[White "Deuer, Marius"]
[Black "Zaichenko, Daria"]
[WhiteFideId "16236432"]
[BlackFideId "4197453"]
[WhiteElo "2091"]
[BlackElo "2039"]
[Result "0-1"]
[Round "09"]
[TimeControl "180+1"]
[Date "2022.02.15"]
[WhiteClock "0:01:06"]
[BlackClock "0:02:21"]

1. e4 {[%clk 0:02:55]}  c5 {[%clk 0:02:58]} 2. Nf3 {[%clk 0:02:55]}  Nc6 {[%clk 0:02:57]} 3. d4 {[%clk 0:02:56]}  cxd4 {[%clk 0:02:57]} 4. Nxd4 {[%clk 0:02:57]}  Nf6 {[%clk 0:02:57]} 5. Nc3 {[%clk 0:02:57]}  d6 {[%clk 0:02:56]} 6. Bg5 {[%clk 0:02:57]}  e6 {[%clk 0:02:55]} 7. Qd2 {[%clk 0:02:55]}  a6 {[%clk 0:02:55]} 8. O-O-O {[%clk 0:02:55]}  Be7 {[%clk 0:02:55]} 9. f4 {[%clk 0:02:51]}  Bd7 {[%clk 0:02:55]} 10. Nf3 {[%clk 0:02:49]}  b5 {[%clk 0:02:54]} 11. Bxf6 {[%clk 0:02:49]}  gxf6 {[%clk 0:02:54]} 12. Bd3 {[%clk 0:02:49]}  Qb6 {[%clk 0:02:53]} 13. f5 {[%clk 0:02:46]}  Na5 {[%clk 0:02:52]} 14. Ne2 {[%clk 0:02:43]}  Nc4 {[%clk 0:02:51]} 15. Bxc4 {[%clk 0:02:40]}  bxc4 {[%clk 0:02:51]} 16. Kb1 {[%clk 0:02:39]}  Rb8 {[%clk 0:02:48]} 17. c3 {[%clk 0:02:37]}  Bc6 {[%clk 0:02:45]} 18. Ng3 {[%clk 0:02:34]}  Kd7 {[%clk 0:02:40]} 19. fxe6+ {[%clk 0:01:47]}  fxe6 {[%clk 0:02:40]} 20. e5 {[%clk 0:01:45]}  d5 {[%clk 0:02:31]} 21. exf6 {[%clk 0:01:40]}  Ba3 {[%clk 0:02:30]} 22. Ne5+ {[%clk 0:01:34]}  Kc7 {[%clk 0:02:28]} 23. b3 {[%clk 0:01:17]}  cxb3 {[%clk 0:02:25]} 24. Rhe1 {[%clk 0:01:10]}  bxa2+ {[%clk 0:02:24]} 25. Kxa2 {[%clk 0:01:07]}  Qb3+ {[%clk 0:02:22]} 26. Ka1 {[%clk 0:01:06]}  Bb2+ {[%clk 0:02:22]} 27. Kb1 {[%clk 0:01:06]}  Bxc3+ {[%clk 0:02:21]} 28. Kc1 {[%clk 0:01:06]}  Qb1# {[%clk 0:02:21]} 0-1


[Site "https://www.chess.com"]

[Event "Titled Tuesday Blitz February 15 Early 2022"]
[White "Dzhaparov, Medet"]
[Black "Zheenbekov, Nurgazy"]
[WhiteFideId "13803689"]
[BlackFideId "13800485"]
[WhiteElo "1702"]
[BlackElo "1959"]
[Result "0-1"]
[Round "09"]
[TimeControl "180+1"]
[Date "2022.02.15"]
[WhiteClock "0:00:19"]
[BlackClock "0:01:10"]

1. e4 {[%clk 0:02:58]}  e5 {[%clk 0:02:59]} 2. Nf3 {[%clk 0:02:58]}  Nc6 {[%clk 0:02:59]} 3. d4 {[%clk 0:02:57]}  exd4 {[%clk 0:02:58]} 4. Nxd4 {[%clk 0:02:58]}  Bc5 {[%clk 0:02:58]} 5. Be3 {[%clk 0:02:57]}  Qf6 {[%clk 0:02:57]} 6. c3 {[%clk 0:02:57]}  Nge7 {[%clk 0:02:57]} 7. Bc4 {[%clk 0:02:57]}  O-O {[%clk 0:02:57]} 8. O-O {[%clk 0:02:56]}  Bb6 {[%clk 0:02:57]} 9. Re1 {[%clk 0:02:52]}  d6 {[%clk 0:02:50]} 10. Nxc6 {[%clk 0:02:48]}  bxc6 {[%clk 0:02:45]} 11. Bxb6 {[%clk 0:02:47]}  axb6 {[%clk 0:02:45]} 12. Re3 {[%clk 0:02:45]}  Ng6 {[%clk 0:02:36]} 13. Nd2 {[%clk 0:02:41]}  Ne5 {[%clk 0:02:24]} 14. Bb3 {[%clk 0:02:39]}  Be6 {[%clk 0:02:24]} 15. Rg3 {[%clk 0:02:38]}  c5 {[%clk 0:02:16]} 16. Bxe6 {[%clk 0:02:25]}  fxe6 {[%clk 0:02:15]} 17. Qe2 {[%clk 0:02:20]}  Ng6 {[%clk 0:02:06]} 18. Qg4 {[%clk 0:02:03]}  e5 {[%clk 0:01:54]} 19. Rf3 {[%clk 0:01:57]}  Qe7 {[%clk 0:01:54]} 20. Rxf8+ {[%clk 0:01:56]}  Rxf8 {[%clk 0:01:53]} 21. Nf1 {[%clk 0:01:55]}  Nf4 {[%clk 0:01:49]} 22. Ne3 {[%clk 0:01:52]}  Qe6 {[%clk 0:01:42]} 23. Qxe6+ {[%clk 0:01:50]}  Nxe6 {[%clk 0:01:42]} 24. Nd5 {[%clk 0:01:50]}  Ra8 {[%clk 0:01:39]} 25. a3 {[%clk 0:01:48]}  Kf7 {[%clk 0:01:39]} 26. Re1 {[%clk 0:01:47]}  b5 {[%clk 0:01:34]} 27. Re3 {[%clk 0:01:46]}  g6 {[%clk 0:01:28]} 28. Rf3+ {[%clk 0:01:46]}  Kg7 {[%clk 0:01:28]} 29. h4 {[%clk 0:01:42]}  c4 {[%clk 0:01:27]} 30. g4 {[%clk 0:01:32]}  Rf8 {[%clk 0:01:25]} 31. Rxf8 {[%clk 0:01:29]}  Kxf8 {[%clk 0:01:24]} 32. Nb4 {[%clk 0:01:28]}  Nc5 {[%clk 0:01:19]} 33. f3 {[%clk 0:01:27]}  Na4 {[%clk 0:01:18]} 34. Na6 {[%clk 0:01:14]}  c6 {[%clk 0:01:17]} 35. Nb8 {[%clk 0:01:04]}  Nxb2 {[%clk 0:01:17]} 36. Nxc6 {[%clk 0:01:03]}  Na4 {[%clk 0:01:15]} 37. Na7 {[%clk 0:00:50]}  Nxc3 {[%clk 0:01:14]} 38. Nc8 {[%clk 0:00:50]}  Nb1 {[%clk 0:01:11]} 39. Kf2 {[%clk 0:00:19]}  c3 {[%clk 0:01:10]} 0-1


[Site "https://www.chess.com"]

[Event "Titled Tuesday Blitz February 15 Early 2022"]
[White "Eynullayev, Altay"]
[Black "Shyaamnikhil P"]
[WhiteFideId "13413562"]
[BlackFideId "5024218"]
[WhiteElo "2079"]
[BlackElo "2292"]
[Result "0-1"]
[Round "09"]
[TimeControl "180+1"]
[Date "2022.02.15"]
[WhiteClock "0:00:04"]
[BlackClock "0:00:16"]

1. e4 {[%clk 0:03:00]}  e5 {[%clk 0:02:55]} 2. Nf3 {[%clk 0:03:01]}  Nc6 {[%clk 0:02:55]} 3. Bb5 {[%clk 0:03:01]}  a6 {[%clk 0:02:55]} 4. Ba4 {[%clk 0:03:01]}  Nge7 {[%clk 0:02:50]} 5. O-O {[%clk 0:03:01]}  g6 {[%clk 0:02:47]} 6. c3 {[%clk 0:03:00]}  Bg7 {[%clk 0:02:46]} 7. d4 {[%clk 0:03:00]}  b5 {[%clk 0:02:45]} 8. Bc2 {[%clk 0:02:57]}  exd4 {[%clk 0:02:44]} 9. cxd4 {[%clk 0:02:57]}  d5 {[%clk 0:02:30]} 10. exd5 {[%clk 0:02:56]}  Nxd5 {[%clk 0:02:30]} 11. Re1+ {[%clk 0:02:51]}  Be6 {[%clk 0:02:30]} 12. Bg5 {[%clk 0:02:50]}  Qd6 {[%clk 0:02:24]} 13. Nbd2 {[%clk 0:02:40]}  O-O {[%clk 0:02:23]} 14. Ne4 {[%clk 0:02:39]}  Qb4 {[%clk 0:02:23]} 15. Bb3 {[%clk 0:01:18]}  Nxd4 {[%clk 0:02:13]} 16. Nxd4 {[%clk 0:01:12]}  Qxd4 {[%clk 0:02:12]} 17. Qf3 {[%clk 0:00:36]}  h6 {[%clk 0:01:55]} 18. Rad1 {[%clk 0:00:33]}  Qxb2 {[%clk 0:01:53]} 19. Rb1 {[%clk 0:00:32]}  Qd4 {[%clk 0:01:39]} 20. Rbd1 {[%clk 0:00:31]}  Qb2 {[%clk 0:01:35]} 21. Re2 {[%clk 0:00:29]}  Qxe2 {[%clk 0:01:27]} 22. Qxe2 {[%clk 0:00:29]}  hxg5 {[%clk 0:01:23]} 23. Bxd5 {[%clk 0:00:28]}  Rfe8 {[%clk 0:01:22]} 24. Bxe6 {[%clk 0:00:24]}  Rxe6 {[%clk 0:01:23]} 25. Qc2 {[%clk 0:00:14]}  Rae8 {[%clk 0:01:10]} 26. Nd2 {[%clk 0:00:14]}  Re2 {[%clk 0:01:05]} 27. Qd3 {[%clk 0:00:11]}  c5 {[%clk 0:01:02]} 28. Nf1 {[%clk 0:00:10]}  c4 {[%clk 0:01:01]} 29. Qf3 {[%clk 0:00:06]}  R2e6 {[%clk 0:00:49]} 30. Ne3 {[%clk 0:00:06]}  c3 {[%clk 0:00:47]} 31. a3 {[%clk 0:00:05]}  a5 {[%clk 0:00:44]} 32. Rc1 {[%clk 0:00:05]}  b4 {[%clk 0:00:44]} 33. axb4 {[%clk 0:00:06]}  axb4 {[%clk 0:00:45]} 34. Qb7 {[%clk 0:00:07]}  Bf8 {[%clk 0:00:42]} 35. g3 {[%clk 0:00:07]}  Rd8 {[%clk 0:00:39]} 36. Kg2 {[%clk 0:00:07]}  Rd2 {[%clk 0:00:37]} 37. Qb5 {[%clk 0:00:07]}  Rxe3 {[%clk 0:00:35]} 38. Qxg5 {[%clk 0:00:07]}  Ree2 {[%clk 0:00:35]} 39. Rf1 {[%clk 0:00:07]}  c2 {[%clk 0:00:34]} 40. h4 {[%clk 0:00:07]}  Be7 {[%clk 0:00:28]} 41. Qf4 {[%clk 0:00:05]}  b3 {[%clk 0:00:19]} 42. Qb8+ {[%clk 0:00:04]}  Kg7 {[%clk 0:00:16]} 43. Qxb3 {[%clk 0:00:05]}  Bf6 {[%clk 0:00:16]} 44. h5 {[%clk 0:00:05]}  Rxf2+ {[%clk 0:00:16]} 45. Rxf2 {[%clk 0:00:04]}  Rxf2+ {[%clk 0:00:17]} 46. Kxf2 {[%clk 0:00:04]}  c1=Q {[%clk 0:00:16]} 47. h6+ {[%clk 0:00:04]}  Qxh6 {[%clk 0:00:16]} 0-1


[Site "https://www.chess.com"]

[Event "Titled Tuesday Blitz February 15 Early 2022"]
[White "Faizrakhmanov, Ramil"]
[Black "Osmak, Yuliia"]
[WhiteFideId "24103209"]
[BlackFideId "14101602"]
[WhiteElo "2502"]
[BlackElo "2302"]
[Result "1-0"]
[Round "09"]
[TimeControl "180+1"]
[Date "2022.02.15"]
[WhiteClock "0:00:36"]
[BlackClock "0:00:48"]

1. e4 {[%clk 0:03:00]}  e5 {[%clk 0:02:55]} 2. Nf3 {[%clk 0:02:55]}  Nc6 {[%clk 0:02:55]} 3. Bb5 {[%clk 0:02:55]}  a6 {[%clk 0:02:54]} 4. Ba4 {[%clk 0:02:55]}  Nf6 {[%clk 0:02:53]} 5. O-O {[%clk 0:02:55]}  Be7 {[%clk 0:02:51]} 6. Re1 {[%clk 0:02:55]}  b5 {[%clk 0:02:50]} 7. Bb3 {[%clk 0:02:56]}  d6 {[%clk 0:02:50]} 8. c3 {[%clk 0:02:51]}  O-O {[%clk 0:02:50]} 9. h3 {[%clk 0:02:51]}  Re8 {[%clk 0:02:46]} 10. d4 {[%clk 0:02:51]}  Bf8 {[%clk 0:02:46]} 11. Nbd2 {[%clk 0:02:50]}  Na5 {[%clk 0:02:42]} 12. Bc2 {[%clk 0:02:50]}  c5 {[%clk 0:02:41]} 13. a4 {[%clk 0:02:45]}  Bb7 {[%clk 0:02:35]} 14. d5 {[%clk 0:02:41]}  c4 {[%clk 0:02:30]} 15. Nf1 {[%clk 0:02:40]}  Qc7 {[%clk 0:02:28]} 16. g4 {[%clk 0:02:33]}  Bc8 {[%clk 0:02:22]} 17. Ng3 {[%clk 0:02:29]}  Bd7 {[%clk 0:02:22]} 18. g5 {[%clk 0:02:23]}  Nxd5 {[%clk 0:02:07]} 19. exd5 {[%clk 0:02:20]}  Bxh3 {[%clk 0:02:07]} 20. axb5 {[%clk 0:02:12]}  axb5 {[%clk 0:02:06]} 21. Nh2 {[%clk 0:01:50]}  Qd7 {[%clk 0:02:00]} 22. Qh5 {[%clk 0:01:41]}  g6 {[%clk 0:02:00]} 23. Qh4 {[%clk 0:01:41]}  Bg7 {[%clk 0:01:55]} 24. Be3 {[%clk 0:01:35]}  Nb7 {[%clk 0:01:47]} 25. Rxa8 {[%clk 0:01:31]}  Rxa8 {[%clk 0:01:48]} 26. Ne4 {[%clk 0:01:30]}  Bf5 {[%clk 0:01:34]} 27. Nf6+ {[%clk 0:01:30]}  Bxf6 {[%clk 0:01:33]} 28. gxf6 {[%clk 0:01:31]}  h5 {[%clk 0:01:26]} 29. Qg5 {[%clk 0:01:27]}  Qc8 {[%clk 0:01:10]} 30. Qh6 {[%clk 0:01:05]}  Qf8 {[%clk 0:01:09]} 31. Bxf5 {[%clk 0:01:01]}  Qxh6 {[%clk 0:01:08]} 32. Bxh6 {[%clk 0:01:02]}  gxf5 {[%clk 0:01:08]} 33. Nf3 {[%clk 0:01:00]}  Ra2 {[%clk 0:01:06]} 34. Re2 {[%clk 0:00:57]}  f4 {[%clk 0:00:59]} 35. Nh4 {[%clk 0:00:45]}  Kh7 {[%clk 0:00:57]} 36. Bxf4 {[%clk 0:00:36]}  exf4 {[%clk 0:00:55]} 37. Re7 {[%clk 0:00:37]}  Nc5 {[%clk 0:00:49]} 38. Rxf7+ {[%clk 0:00:37]}  Kh6 {[%clk 0:00:48]} 39. Rg7 {[%clk 0:00:36]} 1-0


[Site "https://www.chess.com"]